fUST/lending_fUST_20260107
["ID","MTS","AMOUNT","RATE_DAILY","PERIOD"]
[400690358,1767779467450,-500.0,0.00029041,2]
[400690360,1767779467460,-271.90972173,0.00029041,2]
[400690362,1767779467470,-500.0,0.00029041,2]
[400690364,1767779467480,-500.0,0.00029041,2]
[400690366,1767779467490,-382.78500282,0.00029041,2]
[400690369,1767779467499,-276.39961175,0.00029041,2]
[400690371,1767779467509,-500.0,0.00029041,2]
[400690373,1767779467519,-756.53,0.00029041,2]
[400690375,1767779467529,-636.31426963,0.00029041,2]
[400690377,1767779467538,-345.47987431,0.00029041,2]
[400690379,1767779467547,-3498.10796226,0.00029041,2]
[400690381,1767779467557,-186.32079974,0.00029041,2]
[400690383,1767779467567,-500.0,0.00029041,2]
[400690385,1767779467577,-558.55,0.00029041,2]
[400690387,1767779467587,-500.0,0.00029041,2]
[400690389,1767779467596,-300.968668,0.00029041,2]
[400690391,1767779467606,-378.7384185,0.00029041,2]
[400690393,1767779467615,-3797.4,0.00029041,2]
[400690395,1767779467625,-167.619488,0.00029041,7]
[400690397,1767779467634,-167.619488,0.00029041,7]
[400690399,1767779467644,-167.619488,0.00029041,7]
[400690401,1767779467656,-167.619488,0.00029041,7]
[400690403,1767779467666,-500.0,0.00029041,2]
[400690405,1767779467676,-500.0,0.00029041,2]
[400690407,1767779467685,-836.74,0.00029041,2]
[400690409,1767779467695,-276.93412194,0.00029041,2]
[400690412,1767779467706,-192.80374,0.00029041,7]
[400690414,1767779467717,-500.0,0.00029041,2]
[400690416,1767779467726,-192.80374,0.00029041,7]
[400690418,1767779467736,-192.80374,0.00029041,7]
[400690420,1767779467746,-500.0,0.00029041,2]
[400690422,1767779467756,-500.0,0.00029041,2]
[400690424,1767779467766,-192.80374,0.00029041,7]
[400690426,1767779467776,-543.28293337,0.00029041,2]
[400690428,1767779467785,-500.0,0.00029041,2]
[400690430,1767779467794,-500.0,0.00029041,2]
[400690432,1767779467804,-154.171022,0.00029041,7]
[400690434,1767779467813,-424.088927,0.00029041,7]
[400690436,1767779467823,-424.088927,0.00029041,7]
[400690438,1767779467832,-424.088927,0.00029041,7]
[400690440,1767779467841,-424.088927,0.00029041,7]
[400690443,1767779467851,-180.537812,0.00029041,7]
[400690444,1767779467860,-180.537812,0.00029041,7]
[400690462,1767779468012,-580.02613712,0.00029041,2]
[400690464,1767779468022,-533.24336171,0.00029041,2]
[400690466,1767779468032,-180.537812,0.00029041,7]
[400690468,1767779468043,-180.537812,0.00029041,7]
[400690470,1767779468052,-174.962007,0.00029041,7]
[400690472,1767779468061,-174.962007,0.00029041,7]
[400690473,1767779468071,-174.962007,0.00029041,7]
[400690475,1767779468080,-500.0,0.00029041,2]
[400690477,1767779468090,-174.962007,0.00029041,7]
[400690480,1767779468099,-444.92832062,0.00029041,2]
[400690482,1767779468109,-678.0,0.00029041,2]
[400690484,1767779468120,-500.0,0.00029041,2]
[400690486,1767779468129,-500.0,0.00029041,2]
[400690488,1767779468139,-956.27,0.00029041,2]
[400690490,1767779468149,-2251.87,0.00029041,2]
[400690492,1767779468159,-500.0,0.00029041,2]
[400690494,1767779468170,-500.0,0.00029041,2]
[400690496,1767779468179,-500.0,0.00029041,2]
[400690498,1767779468189,-500.0,0.00029041,2]
[400690500,1767779468199,-500.0,0.00029041,2]
[400690502,1767779468210,-535.75,0.00029041,2]
[400690504,1767779468220,-14665.45,0.00029041,2]
[400690506,1767779468231,-285.82690785,0.00029041,2]
[400690508,1767779468241,-500.0,0.00029041,2]
[400690510,1767779468251,-182.16078604,0.00029041,2]
[400690512,1767779468260,-909.99,0.00029041,2]
[400690514,1767779468271,-500.0,0.00029041,2]
[400690516,1767779468283,-500.0,0.00029041,2]
[400690518,1767779468296,-500.0,0.00029041,2]
[400690520,1767779468307,-164.96319497,0.00029041,2]
[400690522,1767779468319,-436.62884109,0.00029041,2]
[400690524,1767779468331,-490.19727701,0.00029041,2]
[400690526,1767779468342,-500.0,0.00029041,2]
[400690528,1767779468353,-927.69,0.00029041,2]
[400690530,1767779468363,-4613.91,0.00029041,2]
[400690532,1767779468374,-500.0,0.00029041,2]
[400690534,1767779468385,-158.94735849,0.00029041,2]
[400690537,1767779468397,-500.0,0.00029041,2]
[400690539,1767779468414,-577.42065993,0.00029041,2]
[400690541,1767779468425,-500.0,0.00029041,2]
[400690543,1767779468436,-2787.6,0.00029041,2]
[400690545,1767779468447,-717.62,0.00029041,2]
[400690546,1767779468457,-661.34,0.00029041,2]
[400690548,1767779468468,-500.0,0.00029041,2]
[400690550,1767779468477,-500.0,0.00029041,2]
[400690552,1767779468487,-500.0,0.00029041,2]
[400690555,1767779468499,-500.0,0.00029041,2]
[400690557,1767779468510,-500.0,0.00029041,2]
[400690559,1767779468521,-454.81165634,0.00029041,2]
[400690561,1767779468531,-500.0,0.00029041,2]
[400690563,1767779468542,-505.05,0.00029041,2]
[400690565,1767779468554,-500.0,0.00029041,2]
[400690567,1767779468565,-500.0,0.00029041,2]
[400690569,1767779468574,-500.0,0.00029041,2]
[400690571,1767779468584,-1076.6,0.00029041,2]
[400690572,1767779468605,-3024.23,0.00029041,2]
[400690574,1767779468622,-500.0,0.00029041,2]
[400690576,1767779468632,-500.0,0.00029041,2]
[400690578,1767779468642,-500.0,0.00029041,2]
[400690580,1767779468654,-853.68,0.00029041,2]
[400690582,1767779468665,-604.4750424,0.00029041,2]
[400690584,1767779468675,-500.0,0.00029041,2]
[400690586,1767779468684,-500.0,0.00029041,2]
[400690588,1767779468694,-500.0,0.00029041,2]
[400690590,1767779468703,-500.0,0.00029041,2]
[400690592,1767779468713,-500.0,0.00029041,2]
[400690594,1767779468722,-500.71208436,0.00029041,2]
[400690596,1767779468731,-500.0,0.00029041,2]
[400690598,1767779468741,-151.0,0.00029041,7]
[400690600,1767779468750,-151.0,0.00029041,7]
[400690602,1767779468759,-151.0,0.00029041,7]
[400690604,1767779468769,-151.853197,0.00029041,7]
[400690606,1767779468779,-151.531548,0.00029041,7]
[400690608,1767779468788,-151.0,0.00029041,7]
[400690610,1767779468797,-500.0,0.00029041,2]
[400690612,1767779468807,-151.0,0.00029041,2]
[400690613,1767779468816,-151.0,0.00029041,7]
[400690615,1767779468826,-500.0,0.00029041,2]
[400690617,1767779468835,-690.11,0.00029041,2]
[400690619,1767779468844,-836.4,0.00029041,2]
[400690621,1767779468854,-500.0,0.00029041,2]
[400690623,1767779468864,-330.7847672,0.00029041,2]
[400690625,1767779468873,-631.35384667,0.00029041,2]
[400690627,1767779468883,-500.0,0.00029041,2]
[400690629,1767779468893,-418.63105602,0.00029041,2]
[400690631,1767779468903,-612.995739,0.00029041,7]
[400690633,1767779468913,-500.0,0.00029041,2]
[400690635,1767779468922,-612.995739,0.00029041,7]
[400690636,1767779468931,-612.995739,0.00029041,7]
[400690638,1767779468940,-500.0,0.00029041,2]
[400690640,1767779468950,-612.995739,0.00029041,7]
[400690642,1767779468961,-151.0,0.00029041,7]
[400690644,1767779468970,-319.8560238,0.00029041,2]
[400690646,1767779468984,-315.17480256,0.00029041,2]
[400690648,1767779468994,-151.0,0.00029041,7]
[400690650,1767779469003,-500.0,0.00029041,2]
[400690652,1767779469013,-500.0,0.00029041,2]
[400690654,1767779469023,-500.0,0.00029041,2]
[400690656,1767779469032,-500.0,0.00029041,2]
[400690658,1767779469042,-633.2804934,0.00029041,2]
[400690660,1767779469053,-150.28353758,0.00029041,2]
[400690662,1767779469062,-3088.57,0.00029041,2]
[400690664,1767779469073,-215.570059,0.00029041,7]
[400690666,1767779469083,-500.0,0.00029041,2]
[400690668,1767779469092,-206.665209,0.00029041,7]
[400690670,1767779469107,-215.570059,0.00029041,7]
[400690672,1767779469127,-206.665209,0.00029041,7]
[400690674,1767779469138,-215.570059,0.00029041,7]
[400690676,1767779469147,-201.43000809,0.00029041,2]
[400690678,1767779469157,-206.665209,0.00029041,7]
[400690680,1767779469167,-634.815792,0.00029041,7]
[400690682,1767779469177,-215.570059,0.00029041,7]
[400690684,1767779469187,-206.665209,0.00029041,7]
[400690686,1767779469197,-151.0,0.00029041,7]
[400690688,1767779469207,-634.815792,0.00029041,7]
[400690690,1767779469217,-153.400685,0.00029041,7]
[400690692,1767779469227,-339.81281698,0.00029041,2]
[400690694,1767779469237,-634.815792,0.00029041,7]
[400690696,1767779469247,-500.0,0.00029041,2]
[400690698,1767779469257,-634.815792,0.00029041,7]
[400690700,1767779469267,-797.84,0.00029041,2]
[400690702,1767779469276,-500.0,0.00029041,2]
[400690704,1767779469286,-500.0,0.00029041,2]
[400690706,1767779469295,-151.0,0.00029041,7]
[400690707,1767779469306,-151.0,0.00029041,7]
[400690709,1767779469316,-151.0,0.00029041,7]
[400690711,1767779469325,-151.0,0.00029041,7]
[400690713,1767779469335,-151.0,0.00029041,7]
[400690715,1767779469344,-151.0,0.00029041,7]
[400690717,1767779469355,-151.0,0.00029041,7]
[400690719,1767779469365,-151.0,0.00029041,7]
[400690721,1767779469375,-390.16943318,0.00029041,2]
[400690723,1767779469385,-500.0,0.00029041,2]
[400690725,1767779469395,-253.567754,0.00029041,7]
[400690727,1767779469406,-725.03,0.00029041,2]
[400690729,1767779469416,-253.567754,0.00029041,7]
[400690731,1767779469425,-246.60117318,0.00029041,2]
[400690733,1767779469433,-950.0,0.00029041,5]
[400690735,1767779469442,-450.0,0.00029041,5]
[400690737,1767779469451,-500.0,0.00029175,7]
[400690739,1767779469460,-775.0,0.00029185,2]
[400690741,1767779469470,-177.524366,0.00029215,7]
[400690743,1767779469480,-390.92977,0.00029215,7]
[400690745,1767779469492,-390.92977,0.00029215,7]
[400690747,1767779469502,-151.0,0.00029215,7]
[400690749,1767779469512,-390.92977,0.00029215,7]
[400690751,1767779469522,-390.92977,0.00029215,7]
[400690753,1767779469531,-151.0,0.00029215,7]
[400690755,1767779469540,-1664.343388,0.00029215,7]
[400690756,1767779469550,-1664.343388,0.00029215,7]
[400690758,1767779469559,-1664.343388,0.00029215,7]
[400690760,1767779469567,-1664.343388,0.00029215,7]
[400690762,1767779469576,-1016.281206,0.00029215,7]
[400690764,1767779469586,-1016.281206,0.00029215,7]
[400690766,1767779469595,-1016.281206,0.00029215,7]
[400690768,1767779469605,-1016.281206,0.00029215,7]
[400690770,1767779469616,-151.0,0.00029215,7]
[400690772,1767779469625,-237.990209,0.00029215,7]
[400690774,1767779469635,-151.0,0.00029215,7]
[400690776,1767779469644,-300.0,0.00029215,7]
[400690778,1767779469654,-300.0,0.00029215,7]
[400690780,1767779469663,-300.0,0.00029215,7]
[400690782,1767779469672,-300.0,0.00029215,7]
[400690783,1767779469682,-10000.0,0.00029215,2]
[400690785,1767779469691,-558.65142608,0.00029236,2]
[400690787,1767779469701,-1346.0,0.0002927,7]
[400690789,1767779469711,-573.04822969,0.00029315,2]
[400690791,1767779469721,-500.0,0.00029315,2]
[400690793,1767779469730,-500.0,0.00029315,2]
[400690795,1767779469739,-500.0,0.00029315,2]
[400690797,1767779469747,-500.0,0.00029315,2]
[400690799,1767779469755,-500.0,0.00029315,2]
[400690801,1767779469764,-500.0,0.00029315,2]
[400690803,1767779469773,-503.99835386,0.00029315,2]
[400690805,1767779469782,-1000.0,0.00029315,2]
[400690807,1767779469791,-798.94,0.00029315,2]
[400690808,1767779469800,-500.0,0.00029315,2]
[400690810,1767779469809,-500.0,0.00029315,2]
[400690812,1767779469819,-500.0,0.00029315,2]
[400690814,1767779469828,-500.0,0.00029315,2]
[400690816,1767779469837,-1000.0,0.00029315,2]
[400690818,1767779469846,-500.0,0.00029315,2]
[400690820,1767779469855,-359.86544913,0.00029315,2]
[400690822,1767779469864,-500.0,0.00029315,2]
[400690824,1767779469873,-576.3,0.00029315,2]
[400690826,1767779469882,-500.0,0.00029315,2]
[400690828,1767779469892,-200.0,0.00029315,2]
[400690830,1767779469902,-578.43487255,0.00029315,2]
[400690832,1767779469911,-500.0,0.00029315,2]
[400690834,1767779469920,-500.0,0.00029315,2]
[400690836,1767779469930,-155.941858,0.00029315,7]
[400690837,1767779469939,-155.941858,0.00029315,7]
[400690839,1767779469947,-155.941858,0.00029315,7]
[400690841,1767779469955,-155.941858,0.00029315,7]
[400690843,1767779469970,-500.0,0.00029315,2]
[400690845,1767779469979,-756.53,0.00029315,2]
[400690847,1767779469988,-3498.10796226,0.00029315,2]
[400690849,1767779469998,-500.0,0.00029315,2]
[400690851,1767779470008,-160.505853,0.00029315,7]
[400690853,1767779470018,-558.55,0.00029315,2]
[400690855,1767779470028,-160.505853,0.00029315,7]
[400690857,1767779470038,-160.505853,0.00029315,7]
[400690859,1767779470047,-500.0,0.00029315,2]
[400690861,1767779470056,-160.505853,0.00029315,7]
[400690863,1767779470064,-3797.4,0.00029315,2]
[400690865,1767779470074,-500.0,0.00029315,2]
[400690866,1767779470082,-458.82741371,0.00029315,2]
[400690868,1767779470091,-836.74,0.00029315,2]
[400690870,1767779470100,-500.0,0.00029315,2]
[400690872,1767779470110,-500.0,0.00029315,2]
[400690874,1767779470120,-500.0,0.00029315,2]
[400690876,1767779470131,-500.0,0.00029315,2]
[400690878,1767779470140,-500.0,0.00029315,2]
[400690880,1767779470151,-500.0,0.00029315,2]
[400690882,1767779470160,-678.0,0.00029315,2]
[400690884,1767779470170,-500.0,0.00029315,2]
[400690886,1767779470179,-500.0,0.00029315,2]
[400690888,1767779470188,-956.27,0.00029315,2]
[400690890,1767779470197,-2251.87,0.00029315,2]
[400690891,1767779470206,-288.39803088,0.00029315,2]
[400690893,1767779470215,-500.0,0.00029315,2]
[400690895,1767779470225,-274.48276996,0.00029315,2]
[400690897,1767779470235,-464.50837596,0.00029315,2]
[400690899,1767779470244,-150.96099625,0.00029315,2]
[400690901,1767779470254,-535.75,0.00029315,2]
[400690903,1767779470263,-14665.45,0.00029315,2]
[400690905,1767779470273,-210.72530276,0.00029315,2]
[400690907,1767779470284,-909.99,0.00029315,2]
[400690909,1767779470293,-160.28123873,0.00029315,2]
[400690911,1767779470303,-500.0,0.00029315,2]
[400690913,1767779470311,-500.0,0.00029315,2]
[400690915,1767779470320,-500.0,0.00029315,2]
[400690917,1767779470330,-927.69,0.00029315,2]
[400690919,1767779470339,-4613.91,0.00029315,2]
[400690921,1767779470349,-500.0,0.00029315,2]
[400690923,1767779470358,-500.0,0.00029315,2]
[400690924,1767779470368,-396.65355941,0.00029315,2]
[400690926,1767779470377,-2787.6,0.00029315,2]
[400690928,1767779470388,-717.62,0.00029315,2]
[400690930,1767779470397,-661.34,0.00029315,2]
[400690932,1767779470408,-500.0,0.00029315,2]
[400690934,1767779470417,-500.0,0.00029315,2]
[400690936,1767779470427,-500.0,0.00029315,2]
[400690938,1767779470438,-500.0,0.00029315,2]
[400690940,1767779470448,-500.0,0.00029315,2]
[400690942,1767779470458,-500.0,0.00029315,2]
[400690944,1767779470467,-505.05,0.00029315,2]
[400690946,1767779470475,-639.26401329,0.00029315,2]
[400690948,1767779470484,-500.0,0.00029315,2]
[400690950,1767779470493,-500.0,0.00029315,2]
[400690951,1767779470502,-1076.6,0.00029315,2]
[400690953,1767779470511,-3024.23,0.00029315,2]
[400690955,1767779470519,-500.0,0.00029315,2]
[400690957,1767779470529,-500.0,0.00029315,2]
[400690959,1767779470539,-500.0,0.00029315,2]
[400690961,1767779470547,-853.68,0.00029315,2]
[400690963,1767779470557,-500.0,0.00029315,2]
[400690965,1767779470566,-500.0,0.00029315,2]
[400690967,1767779470574,-500.0,0.00029315,2]
[400690969,1767779470583,-500.0,0.00029315,2]
[400690971,1767779470592,-225.8348066,0.00029315,2]
[400690973,1767779470601,-500.0,0.00029315,2]
[400690975,1767779470611,-500.0,0.00029315,2]
[400690976,1767779470620,-500.0,0.00029315,2]
[400690978,1767779470629,-690.11,0.00029315,2]
[400690980,1767779470640,-836.4,0.00029315,2]
[400690982,1767779470649,-500.0,0.00029315,2]
[400690984,1767779470658,-242.51574945,0.00029315,2]
[400690986,1767779470667,-500.0,0.00029315,2]
[400690988,1767779470676,-500.0,0.00029315,2]
[400690990,1767779470685,-500.0,0.00029315,2]
[400690992,1767779470695,-496.03666256,0.00029315,2]
[400690994,1767779470703,-500.0,0.00029315,2]
[400690996,1767779470712,-500.0,0.00029315,2]
[400690998,1767779470722,-3088.57,0.00029315,2]
[400691000,1767779470731,-500.0,0.00029315,2]
[400691002,1767779470741,-500.0,0.00029315,2]
[400691004,1767779470750,-797.84,0.00029315,2]
[400691005,1767779470759,-500.0,0.00029315,2]
[400691007,1767779470769,-254.8680474,0.00029315,2]
[400691009,1767779470778,-500.0,0.00029315,2]
[400691011,1767779470787,-725.03,0.00029315,2]
[400691013,1767779470796,-200.76,0.000294,7]
[400691015,1767779470805,-1000.0,0.00029432,30]
[400691017,1767779470815,-1000.0,0.00029432,30]
[400691019,1767779470824,-1000.0,0.00029432,30]
[400691021,1767779470832,-715.0,0.00029432,30]
[400691023,1767779470841,-2000.0,0.00029442,7]
[400691025,1767779470852,-405.46828083,0.00029444,2]
[400691027,1767779470865,-6225.69980601,0.00029493,2]
[400691029,1767779470876,-1346.0,0.00029568,2]
[400691030,1767779470885,-230.7,0.00029582,3]
[400691031,1767779470895,-500.0,0.00029589,2]
[400691032,1767779470906,-307.11918499,0.00029589,2]
[400691033,1767779470915,-500.0,0.00029589,2]
[400691034,1767779470924,-500.0,0.00029589,2]
[400691035,1767779470934,-500.0,0.00029589,2]
[400691036,1767779470946,-500.0,0.00029589,2]
[400691037,1767779470962,-1000.0,0.00029589,2]
[400691038,1767779470972,-798.94,0.00029589,2]
[400691039,1767779470982,-500.0,0.00029589,2]
[400691040,1767779470991,-500.0,0.00029589,2]
[400691041,1767779471000,-151.0,0.00029589,7]
[400691042,1767779471010,-500.0,0.00029589,2]
[400691043,1767779471019,-500.0,0.00029589,2]
[400691044,1767779471028,-151.0,0.00029589,7]
[400691045,1767779471036,-1000.0,0.00029589,2]
[400691046,1767779471048,-151.0,0.00029589,7]
[400691047,1767779471057,-217.12147852,0.00029589,2]
[400691048,1767779471065,-628.51847129,0.00029589,2]
[400691049,1767779471074,-1301.347602,0.00029589,7]
[400691050,1767779471083,-1301.347602,0.00029589,7]
[400691051,1767779471092,-1301.347602,0.00029589,7]
[400691052,1767779471101,-1301.347602,0.00029589,7]
[400691053,1767779471110,-576.3,0.00029589,2]
[400691054,1767779471119,-500.0,0.00029589,2]
[400691055,1767779471128,-200.0,0.00029589,2]
[400691056,1767779471137,-500.0,0.00029589,2]
[400691058,1767779471146,-500.0,0.00029589,2]
[400691060,1767779471157,-500.0,0.00029589,2]
[400691062,1767779471166,-756.53,0.00029589,2]
[400691064,1767779471175,-3498.10796226,0.00029589,2]
[400691065,1767779471184,-500.0,0.00029589,2]
[400691067,1767779471194,-558.55,0.00029589,2]
[400691069,1767779471203,-253.87361636,0.00029589,2]
[400691071,1767779471212,-3797.4,0.00029589,2]
[400691073,1767779471222,-500.0,0.00029589,2]
[400691075,1767779471230,-836.74,0.00029589,2]
[400691091,1767779471377,-500.0,0.00029589,2]
[400691093,1767779471387,-500.0,0.00029589,2]
[400691095,1767779471396,-500.0,0.00029589,2]
[400691097,1767779471408,-500.0,0.00029589,2]
[400691099,1767779471417,-500.0,0.00029589,2]
[400691102,1767779471428,-500.0,0.00029589,2]
[400691104,1767779471437,-678.0,0.00029589,2]
[400691105,1767779471447,-500.0,0.00029589,2]
[400691107,1767779471456,-500.0,0.00029589,2]
[400691109,1767779471466,-956.27,0.00029589,2]
[400691111,1767779471475,-2251.87,0.00029589,2]
[400691113,1767779471484,-494.50896696,0.00029589,2]
[400691115,1767779471494,-535.75,0.00029589,2]
[400691117,1767779471504,-14665.45,0.00029589,2]
[400691119,1767779471513,-909.99,0.00029589,2]
[400691121,1767779471523,-500.0,0.00029589,2]
[400691123,1767779471532,-280.94208117,0.00029589,2]
[400691125,1767779471542,-500.0,0.00029589,2]
[400691127,1767779471553,-927.69,0.00029589,2]
[400691129,1767779471562,-4613.91,0.00029589,2]
[400691131,1767779471571,-500.0,0.00029589,2]
[400691133,1767779471581,-500.0,0.00029589,2]
[400691136,1767779471590,-2787.6,0.00029589,2]
[400691137,1767779471600,-717.62,0.00029589,2]
[400691139,1767779471609,-661.34,0.00029589,2]
[400691141,1767779471618,-267.93852711,0.00029589,2]
[400691143,1767779471627,-500.0,0.00029589,2]
[400691145,1767779471636,-500.0,0.00029589,2]
[400691147,1767779471646,-500.0,0.00029589,2]
[400691149,1767779471655,-497.94098342,0.00029589,2]
[400691151,1767779471665,-500.0,0.00029589,2]
[400691153,1767779471675,-505.05,0.00029589,2]
[400691156,1767779471684,-500.0,0.00029589,2]
[400691158,1767779471694,-500.0,0.00029589,2]
[400691159,1767779471703,-1076.6,0.00029589,2]
[400691161,1767779471713,-3024.23,0.00029589,2]
[400691163,1767779471722,-500.0,0.00029589,2]
[400691165,1767779471731,-500.0,0.00029589,2]
[400691167,1767779471741,-500.0,0.00029589,2]
[400691169,1767779471750,-853.68,0.00029589,2]
[400691171,1767779471759,-500.0,0.00029589,2]
[400691173,1767779471768,-500.0,0.00029589,2]
[400691175,1767779471778,-500.0,0.00029589,2]
[400691177,1767779471788,-500.0,0.00029589,2]
[400691179,1767779471798,-500.0,0.00029589,2]
[400691181,1767779471807,-172.15995638,0.00029589,2]
[400691183,1767779471817,-500.0,0.00029589,2]
[400691185,1767779471826,-690.11,0.00029589,2]
[400691187,1767779471835,-836.4,0.00029589,2]
[400691189,1767779471845,-500.0,0.00029589,2]
[400691191,1767779471855,-215.67315328,0.00029589,2]
[400691193,1767779471864,-500.0,0.00029589,2]
[400691195,1767779471873,-513.68011347,0.00029589,2]
[400691197,1767779471883,-500.0,0.00029589,2]
[400691199,1767779471893,-500.0,0.00029589,2]
[400691201,1767779471902,-3088.57,0.00029589,2]
[400691203,1767779471912,-500.0,0.00029589,2]
[400691205,1767779471921,-500.0,0.00029589,2]
[400691207,1767779471930,-797.84,0.00029589,2]
[400691209,1767779471939,-500.0,0.00029589,2]
[400691211,1767779471948,-500.0,0.00029589,2]
[400691213,1767779471958,-725.03,0.00029589,2]
[400691215,1767779471971,-1050.0,0.00029589,5]
[400691217,1767779471981,-550.0,0.00029589,5]
[400691219,1767779471991,-1300.0,0.00029604,7]
[400691221,1767779472000,-5000.0,0.00029663,2]
[400691223,1767779472011,-385.09,0.000297,2]
[400691225,1767779472020,-74123.98038746,0.000297,2]
[400691227,1767779472030,-25963.54,0.000297,2]
[400691229,1767779472042,-1300.0,0.00029755,7]
[400691231,1767779472051,-1731.82,0.000298,7]
[400691233,1767779472061,-1300.0,0.00029855,7]
[400691235,1767779472071,-500.0,0.00029863,2]
[400691237,1767779472080,-500.0,0.00029863,2]
[400691240,1767779472089,-500.0,0.00029863,2]
[400691241,1767779472099,-500.0,0.00029863,2]
[400691244,1767779472108,-500.0,0.00029863,2]
[400691246,1767779472118,-1000.0,0.00029863,2]
[400691248,1767779472127,-151.0,0.00029863,7]
[400691250,1767779472136,-798.94,0.00029863,2]
[400691252,1767779472145,-151.0,0.00029863,7]
[400691253,1767779472156,-500.0,0.00029863,2]
[400691255,1767779472165,-151.0,0.00029863,7]
[400691257,1767779472174,-151.0,0.00029863,7]
[400691259,1767779472183,-500.0,0.00029863,2]
[400691261,1767779472193,-176.17125572,0.00029863,2]
[400691263,1767779472202,-500.0,0.00029863,2]
[400691265,1767779472212,-1000.0,0.00029863,2]
[400691267,1767779472221,-576.3,0.00029863,2]
[400691270,1767779472232,-500.0,0.00029863,2]
[400691271,1767779472241,-200.0,0.00029863,2]
[400691273,1767779472250,-500.0,0.00029863,2]
[400691275,1767779472259,-337.65943768,0.00029863,2]
[400691277,1767779472269,-500.0,0.00029863,2]
[400691279,1767779472278,-756.53,0.00029863,2]
[400691281,1767779472288,-3498.10796226,0.00029863,2]
[400691283,1767779472297,-500.0,0.00029863,2]
[400691285,1767779472306,-558.55,0.00029863,2]
[400691287,1767779472315,-3797.4,0.00029863,2]
[400691289,1767779472325,-500.0,0.00029863,2]
[400691291,1767779472335,-836.74,0.00029863,2]
[400691293,1767779472344,-500.0,0.00029863,2]
[400691295,1767779472354,-500.0,0.00029863,2]
[400691298,1767779472363,-500.0,0.00029863,2]
[400691300,1767779472373,-500.0,0.00029863,2]
[400691302,1767779472383,-500.0,0.00029863,2]
[400691304,1767779472392,-500.0,0.00029863,2]
[400691306,1767779472402,-678.0,0.00029863,2]
[400691308,1767779472412,-500.0,0.00029863,2]
[400691310,1767779472421,-400.79884869,0.00029863,2]
[400691312,1767779472431,-956.27,0.00029863,2]
[400691314,1767779472440,-2251.87,0.00029863,2]
[400691316,1767779472451,-535.75,0.00029863,2]
[400691318,1767779472460,-14665.45,0.00029863,2]
[400691320,1767779472470,-909.99,0.00029863,2]
[400691322,1767779472479,-500.0,0.00029863,2]
[400691324,1767779472489,-168.0048155,0.00029863,2]
[400691326,1767779472498,-927.69,0.00029863,2]
[400691328,1767779472507,-4613.91,0.00029863,2]
[400691330,1767779472517,-500.0,0.00029863,2]
[400691332,1767779472527,-500.0,0.00029863,2]
[400691334,1767779472536,-2787.6,0.00029863,2]
[400691336,1767779472546,-717.62,0.00029863,2]
[400691338,1767779472555,-661.34,0.00029863,2]
[400691340,1767779472564,-500.0,0.00029863,2]
[400691342,1767779472573,-500.0,0.00029863,2]
[400691344,1767779472583,-287.03308368,0.00029863,2]
[400691346,1767779472593,-500.0,0.00029863,2]
[400691348,1767779472602,-505.05,0.00029863,2]